Workbook

Sheet Würfelspiel
A1: Würfelspiel - Analogie zum radioaktiven Zerfall
B3: Bitte gewünschte Zahlen in die drei
B4: grün unterlegten Zellen eintragen
A5: Anzahl der Würfel (fest): | B5: 10000 | D5: Nummer | E5: Ergebnis | F5: im aktuellen | G5: insgesamt
A6: Augenzahl auf Würfeln: | B6: 6 | D6: des | E6: aktueller | F6: Wurf zu | G6: bereits
D7: Würfels | E7: Wurf | F7: entfernen | G7: entfernt
A8: Anzahl der Würfe: | B8: 25 | D8: 1 | E8: =IF(Start=1,"/",INT((RAND()*Augenananzahl)+1)) -> / | F8: =IF(Start=1,0,IF(E8=Löschzahl,0,1)) -> 0 | G8: =IF(Start=1,1,G8*F8) -> 1
A9: zu entfernde Zahl: | B9: 5 | D9: =D8+1 -> 2 | E9: / | F9: =IF(Start=1,0,IF(E9=Löschzahl,0,1)) -> 0 | G9: 1
D10: =D9+1 -> 3 | E10: / | F10: =IF(Start=1,0,IF(E10=Löschzahl,0,1)) -> 0 | G10: 1
D11: 4 | E11: / | F11: 0 | G11: 1
D12: 5 | E12: / | F12: 0 | G12: 1
D13: 6 | E13: / | F13: 0 | G13: 1
D14: 7 | E14: / | F14: 0 | G14: 1
D15: 8 | E15: / | F15: 0 | G15: 1
D16: 9 | E16: / | F16: 0 | G16: 1
D17: 10 | E17: / | F17: 0 | G17: 1
D18: 11 | E18: / | F18: 0 | G18: 1
D19: 12 | E19: / | F19: 0 | G19: 1
D20: 13 | E20: / | F20: 0 | G20: 1
B21: 0 | D21: 14 | E21: / | F21: 0 | G21: 1
D22: 15 | E22: / | F22: 0 | G22: 1
D23: 16 | E23: / | F23: 0 | G23: 1
D24: 17 | E24: / | F24: 0 | G24: 1
D25: 18 | E25: / | F25: 0 | G25: 1
D26: 19 | E26: / | F26: 0 | G26: 1
D27: 20 | E27: / | F27: 0 | G27: 1
D28: 21 | E28: / | F28: 0 | G28: 1
D29: 22 | E29: / | F29: 0 | G29: 1
D30: 23 | E30: / | F30: 0 | G30: 1
D31: 24 | E31: / | F31: 0 | G31: 1
D32: 25 | E32: / | F32: 0 | G32: 1
D33: =D32+1 -> 26 | E33: / | F33: 0 | G33: 1
D34: 27 | E34: / | F34: 0 | G34: 1
D35: 28 | E35: / | F35: 0 | G35: 1
D36: 29 | E36: / | F36: 0 | G36: 1
D37: 30 | E37: / | F37: 0 | G37: 1
D38: 31 | E38: / | F38: 0 | G38: 1
D39: 32 | E39: / | F39: 0 | G39: 1
D40: 33 | E40: / | F40: 0 | G40: 1
D41: 34 | E41: / | F41: 0 | G41: 1
D42: 35 | E42: / | F42: 0 | G42: 1
D43: 36 | E43: / | F43: 0 | G43: 1
D44: 37 | E44: / | F44: 0 | G44: 1
D45: 38 | E45: / | F45: 0 | G45: 1
D46: 39 | E46: / | F46: 0 | G46: 1
D47: 40 | E47: / | F47: 0 | G47: 1
D48: 41 | E48: / | F48: 0 | G48: 1
D49: 42 | E49: / | F49: 0 | G49: 1
D50: 43 | E50: / | F50: 0 | G50: 1
D51: 44 | E51: / | F51: 0 | G51: 1
D52: 45 | E52: / | F52: 0 | G52: 1
D53: 46 | E53: / | F53: 0 | G53: 1
D54: 47 | E54: / | F54: 0 | G54: 1
D55: 48 | E55: / | F55: 0 | G55: 1
D56: 49 | E56: / | F56: 0 | G56: 1
D57: 50 | E57: / | F57: 0 | G57: 1
D58: 51 | E58: / | F58: 0 | G58: 1
D59: 52 | E59: / | F59: 0 | G59: 1
D60: 53 | E60: / | F60: 0 | G60: 1
D61: 54 | E61: / | F61: 0 | G61: 1
D62: 55 | E62: / | F62: 0 | G62: 1
D63: 56 | E63: / | F63: 0 | G63: 1
D64: 57 | E64: / | F64: 0 | G64: 1
D65: 58 | E65: / | F65: 0 | G65: 1
D66: 59 | E66: / | F66: 0 | G66: 1
D67: 60 | E67: / | F67: 0 | G67: 1
D68: 61 | E68: / | F68: 0 | G68: 1
D69: 62 | E69: / | F69: 0 | G69: 1
D70: 63 | E70: / | F70: 0 | G70: 1
D71: 64 | E71: / | F71: 0 | G71: 1
D72: 65 | E72: =IF(Start=1,"/",INT((RAND()*Augenananzahl)+1)) -> / | F72: =IF(Start=1,0,IF(E72=Löschzahl,0,1)) -> 0 | G72: =IF(Start=1,1,G72*F72) -> 1
D73: 66 | E73: / | F73: 0 | G73: 1
D74: 67 | E74: / | F74: 0 | G74: 1
D75: 68 | E75: / | F75: 0 | G75: 1
D76: 69 | E76: / | F76: 0 | G76: 1
D77: 70 | E77: / | F77: 0 | G77: 1
D78: 71 | E78: / | F78: 0 | G78: 1
D79: 72 | E79: / | F79: 0 | G79: 1
D80: 73 | E80: / | F80: 0 | G80: 1
D81: 74 | E81: / | F81: 0 | G81: 1
D82: 75 | E82: / | F82: 0 | G82: 1
D83: 76 | E83: / | F83: 0 | G83: 1
D84: 77 | E84: / | F84: 0 | G84: 1
D85: 78 | E85: / | F85: 0 | G85: 1
D86: 79 | E86: / | F86: 0 | G86: 1
D87: 80 | E87: / | F87: 0 | G87: 1
D88: 81 | E88: / | F88: 0 | G88: 1
D89: 82 | E89: / | F89: 0 | G89: 1
D90: 83 | E90: / | F90: 0 | G90: 1
D91: 84 | E91: / | F91: 0 | G91: 1
D92: 85 | E92: / | F92: 0 | G92: 1
D93: 86 | E93: / | F93: 0 | G93: 1
D94: 87 | E94: / | F94: 0 | G94: 1
D95: 88 | E95: / | F95: 0 | G95: 1
D96: 89 | E96: / | F96: 0 | G96: 1
D97: =D96+1 -> 90 | E97: / | F97: 0 | G97: 1
D98: 91 | E98: / | F98: 0 | G98: 1
D99: 92 | E99: / | F99: 0 | G99: 1
D100: 93 | E100: / | F100: 0 | G100: 1
D101: 94 | E101: / | F101: 0 | G101: 1
D102: 95 | E102: / | F102: 0 | G102: 1
D103: 96 | E103: / | F103: 0 | G103: 1
D104: 97 | E104: / | F104: 0 | G104: 1
D105: 98 | E105: / | F105: 0 | G105: 1
D106: 99 | E106: / | F106: 0 | G106: 1
D107: 100 | E107: / | F107: 0 | G107: 1
D108: 101 | E108: / | F108: 0 | G108: 1
D109: 102 | E109: / | F109: 0 | G109: 1
D110: 103 | E110: / | F110: 0 | G110: 1
D111: 104 | E111: / | F111: 0 | G111: 1
D112: 105 | E112: / | F112: 0 | G112: 1
D113: 106 | E113: / | F113: 0 | G113: 1
D114: 107 | E114: / | F114: 0 | G114: 1
D115: 108 | E115: / | F115: 0 | G115: 1
D116: 109 | E116: / | F116: 0 | G116: 1
D117: 110 | E117: / | F117: 0 | G117: 1
D118: 111 | E118: / | F118: 0 | G118: 1
D119: 112 | E119: / | F119: 0 | G119: 1
D120: 113 | E120: / | F120: 0 | G120: 1
D121: 114 | E121: / | F121: 0 | G121: 1
D122: 115 | E122: / | F122: 0 | G122: 1
D123: 116 | E123: / | F123: 0 | G123: 1
D124: 117 | E124: / | F124: 0 | G124: 1
D125: 118 | E125: / | F125: 0 | G125: 1
D126: 119 | E126: / | F126: 0 | G126: 1
D127: 120 | E127: / | F127: 0 | G127: 1
D128: 121 | E128: / | F128: 0 | G128: 1
D129: 122 | E129: / | F129: 0 | G129: 1
D130: 123 | E130: / | F130: 0 | G130: 1
D131: 124 | E131: / | F131: 0 | G131: 1
D132: 125 | E132: / | F132: 0 | G132: 1
D133: 126 | E133: / | F133: 0 | G133: 1
D134: 127 | E134: / | F134: 0 | G134: 1
D135: 128 | E135: / | F135: 0 | G135: 1
D136: 129 | E136: =IF(Start=1,"/",INT((RAND()*Augenananzahl)+1)) -> / | F136: =IF(Start=1,0,IF(E136=Löschzahl,0,1)) -> 0 | G136: =IF(Start=1,1,G136*F136) -> 1
D137: 130 | E137: / | F137: 0 | G137: 1
D138: 131 | E138: / | F138: 0 | G138: 1
D139: 132 | E139: / | F139: 0 | G139: 1
D140: 133 | E140: / | F140: 0 | G140: 1
D141: 134 | E141: / | F141: 0 | G141: 1
D142: 135 | E142: / | F142: 0 | G142: 1
D143: 136 | E143: / | F143: 0 | G143: 1
D144: 137 | E144: / | F144: 0 | G144: 1
D145: 138 | E145: / | F145: 0 | G145: 1
D146: 139 | E146: / | F146: 0 | G146: 1
D147: 140 | E147: / | F147: 0 | G147: 1
D148: 141 | E148: / | F148: 0 | G148: 1
D149: 142 | E149: / | F149: 0 | G149: 1
D150: 143 | E150: / | F150: 0 | G150: 1
D151: 144 | E151: / | F151: 0 | G151: 1
D152: 145 | E152: / | F152: 0 | G152: 1
D153: 146 | E153: / | F153: 0 | G153: 1
D154: 147 | E154: / | F154: 0 | G154: 1
D155: 148 | E155: / | F155: 0 | G155: 1
D156: 149 | E156: / | F156: 0 | G156: 1
D157: 150 | E157: / | F157: 0 | G157: 1
D158: 151 | E158: / | F158: 0 | G158: 1
D159: 152 | E159: / | F159: 0 | G159: 1
D160: 153 | E160: / | F160: 0 | G160: 1
D161: =D160+1 -> 154 | E161: / | F161: 0 | G161: 1
D162: 155 | E162: / | F162: 0 | G162: 1
D163: 156 | E163: / | F163: 0 | G163: 1
D164: 157 | E164: / | F164: 0 | G164: 1
D165: 158 | E165: / | F165: 0 | G165: 1
D166: 159 | E166: / | F166: 0 | G166: 1
D167: 160 | E167: / | F167: 0 | G167: 1
D168: 161 | E168: / | F168: 0 | G168: 1
D169: 162 | E169: / | F169: 0 | G169: 1
D170: 163 | E170: / | F170: 0 | G170: 1
D171: 164 | E171: / | F171: 0 | G171: 1
D172: 165 | E172: / | F172: 0 | G172: 1
D173: 166 | E173: / | F173: 0 | G173: 1
D174: 167 | E174: / | F174: 0 | G174: 1
D175: 168 | E175: / | F175: 0 | G175: 1
D176: 169 | E176: / | F176: 0 | G176: 1
D177: 170 | E177: / | F177: 0 | G177: 1
D178: 171 | E178: / | F178: 0 | G178: 1
D179: 172 | E179: / | F179: 0 | G179: 1
D180: 173 | E180: / | F180: 0 | G180: 1
D181: 174 | E181: / | F181: 0 | G181: 1
D182: 175 | E182: / | F182: 0 | G182: 1
D183: 176 | E183: / | F183: 0 | G183: 1
D184: 177 | E184: / | F184: 0 | G184: 1
D185: 178 | E185: / | F185: 0 | G185: 1
D186: 179 | E186: / | F186: 0 | G186: 1
D187: 180 | E187: / | F187: 0 | G187: 1
D188: 181 | E188: / | F188: 0 | G188: 1
D189: 182 | E189: / | F189: 0 | G189: 1
D190: 183 | E190: / | F190: 0 | G190: 1
D191: 184 | E191: / | F191: 0 | G191: 1
D192: 185 | E192: / | F192: 0 | G192: 1
D193: 186 | E193: / | F193: 0 | G193: 1
D194: 187 | E194: / | F194: 0 | G194: 1
D195: 188 | E195: / | F195: 0 | G195: 1
D196: 189 | E196: / | F196: 0 | G196: 1
D197: 190 | E197: / | F197: 0 | G197: 1
D198: 191 | E198: / | F198: 0 | G198: 1
D199: 192 | E199: / | F199: 0 | G199: 1
D200: 193 | E200: =IF(Start=1,"/",INT((RAND()*Augenananzahl)+1)) -> / | F200: =IF(Start=1,0,IF(E200=Löschzahl,0,1)) -> 0 | G200: =IF(Start=1,1,G200*F200) -> 1
D201: 194 | E201: / | F201: 0 | G201: 1
... 9808 more rows
